{"text_format":"1","workbook":"xlsx","n_sheets":4,"sheets":["PREGUNTAS","RESPUESTAS","Hoja2","Hoja1"],"not_rendered":{"charts":0,"images":1,"macros":1,"external_links":0,"defined_names":0,"comments":0,"pivot_tables":0},"unopened":[],"bounds":{"document_bytes":16777216,"sheet_cells":100000,"rows_first":2000,"rows_last":500,"rows_between":2000,"halvings":0,"cell_chars":16384,"cell_head_chars":4096},"cells_cut":0,"cells_raw":0,"read":"whole","date_system":"1900"}

{"sheet":"PREGUNTAS","index":0,"n_rows":31,"n_cols":20,"rows_kept":31,"cut":false,"hidden":false,"merged":[[0,0,0,1],[0,5,0,6],[0,10,0,11],[0,15,0,16]]}
["PREGUNTA ",null,"S","T","N","PREGUNTA ",null,"S","T","N","PREGUNTA ",null,"S","T","N","PREGUNTA ",null,"S","T","N"]
["Suelo dedicarle más tiempo a los estudios y/o al trabajo que algunos de mis compañeros, pues soy perfeccionista y me gusta que las cosas se hagan bien.",1,null,null,null,"No me niego nunca a pasar un rato agradable o divertido. Cuando se me presenta una oportunidad de disfrutar algo, por lo general no lo desaprovecho.",31,null,null,null,"Me desenvuelvo bien en las relaciones sociales. Hablo con naturalidad y no me preocupa demasiado la posibilidad de decir alguna tontería o parecer desinformado.",61,null,null,null,"Soy muy sereno en cuanto a las emociones, rara vez tengo sentimientos profundos, ya sea de enojo de dolor o de alegría.",91]
["Soy una persona muy organizada. Me gusta fijarme un programa de trabajo y vivo haciendo listas con las cosas que debo realizar. A veces tantas listas que no sé qué hacer con ellas.",2,null,null,null,"En cuanto a las relaciones afectivas, creo que soy mi peor enemigo, constantemente me engancho con personas que terminan tratándome mal o desilusionándome. No creo que sea tan incapaz de juzgar a las personas, seguramente soy ingenuo.",32,null,null,null,"Suelo olvidarme de hacer cumplidos; por ejemplo de mandar notitas de agradecimiento. La costumbre de olvidarme de esas cosas me hace pasar malos momentos.",62,null,null,null,"Tengo una expresión inmutable. Para los demás soy un misterio puesto que no suelo demostrar mis emociones ni tener reacciones fuertes.",92]
["Hay quien dice que soy adicto al estudio y/o al trabajo. Es cierto que trabajo mucho pese a que no nos falta el dinero, supongo que, si quisiera, podría descansar, al menos durante un tiempo.",3,null,null,null,"Cuando alguien me demuestra cariño o me trata con ternura, suelo perder el interés, no sé por qué la relación se vuelve aburrida a menos que represente un verdadero desafío.",33,null,null,null,"La mayoría de las personas valora lo bien que me las arreglo siempre.",63,null,null,null,"No me fijo mucho en la reacción que provoco en los demás, ya sea que me critiquen o me elogien demasiado.",93]
["Soy un dejado terrible, constantemente postergo las cosas hasta el último momento.",4,null,null,null,"A menudo soy una persona difícil de tratar, y cuando lo pienso me doy cuenta de que quizá deposito expectativas irracionales en los demás. Sin embargo sigo enfadándome cuando se enojan conmigo.",34,null,null,null,"Me da la impresión de que muchos me exigen demasiado, aunque yo me preocupo expresamente de no hacer lo mismo con ellos.",64,null,null,null,"Tengo la impresión de que funciono en distinta longitud de onda que la mayoría de la gente. A veces siento algunas cosas como muy reales aunque no puedo demostrarlas por ejemplo, percibo la presencia del espíritu de algún familiar que ha muerto y está tratando de comunicarse conmigo.",94]
["Si realmente no quiero hacer algo, por más que me lo pida mi jefe, profesor o alguien de mi familia, no lo voy hacer, o lo voy hacer con tanta desgana que seguramente me saldrá mal.",5,null,null,null,"Ayudo mucho a los demás a menudo con gran sacrificio por mi parte, y sin esperar que me lo pidan.",35,null,null,null,"Suelo ser muy crítico con mi jefe y con otras personas que poseen autoridad. Quizá no sepa ponerme en su lugar, pero muchas veces pienso que yo haría las cosas mejor que ellos.",65,null,null,null,"Me fascina la magia, la percepción extrasensorial y lo sobrenatural. Tengo una suerte de “sexto sentido” y me ha tocado vivir experiencias espeluznantes puesto que he sabido que algo iba a pasar antes que realmente sucediera. ",95]
["Cuando hay varias cosas que hacer, si alguna de ellas no le encuentro sentido o creo que no es de mi responsabilidad, me niego a colaborar.",6,null,null,null,"Suelo dejar las grandes decisiones en manos de las personas importantes de mi vida. ",36,null,null,null,"Cuando me piden que haga algo que no quiero me pongo muy mal. Discuto, protesto me vuelvo gruñón.",66,null,null,null,"Prefiero ahorrar el dinero y no gastarlo en regalos, no me permito el menor derroche lo cual es una buena manera de tener siempre una buena reserva de dinero en el banco. ",96]
["Cuando hay varias cosas que hacer, si alguna de ellas no le encuentro sentido o creo que no es de mi responsabilidad, me niego a colaborar.",7,null,null,null,"Me gusta estar de acuerdo con otras personas. Cuando no estoy de acuerdo, por lo general lo guardo.",37,null,null,null,"Algunos dicen que siempre hago demasiadas cosas. Pero lo cierto es que prefiero hacer yo las cosas en vez de dárselas a otro y que las haga mal y me arriesgo a que me tilden de “mandón” o de “terco” si con eso consigo que los demás hagan todo de la manera correcta.",67,null,null,null,"Soy impaciente y quiero tener las cosas cuando yo quiero.",97]
["Cuando algo me sale bien, me doy cuenta de que no lo disfruto demasiado y que de pronto algo me sale mal enseguida.\n",8,null,null,null,"No soy una persona con muchas iniciativas. Me inclino siempre por seguir a otro más que por conducir, pero soy muy leal como compañero de equipo.",38,null,null,null,"Creo que la disciplina estricta es muy importante. Aunque no \nnecesariamente estoy de acuerdo con los castigos físicos, y creo que no castigando a un niño solo contribuiremos con malcriarlo.\n",68,null,null,null,"Me gusta obrar por impulsos de vez en cuando. Por ejemplo si tengo ganas me emborracho o me drogo, me excedo con la comunidad, conduzco a alta velocidad, o me doy el gusto de comprar cosas. Actuando de esta manera la vida se torna mucho más interesante, aunque a veces me sale el tiro por la culata.",98]
["Tengo muchas condiciones que no aprovecho. Cuando se hacer algo bien puedo ayudar a que también lo hagan otras personas, pero no soy capaz de lograr que ese talento redunde en mi propio beneficio.",9,null,null,null,"No me molesta tener que aportar una cuota adicional de trabajo o incluso hago lo que nadie quiere hacer si con eso vamos a llevarnos todos bien. Desde luego me gusta que valoren mi gesto.",39,null,null,null,"En mi familia se quejan de que no les doy demasiada libertad. Supongo que soy bastante estricto. ",69,null,null,null,"Cuando tengo un disgusto me vuelvo muy teatral. En alguna oportunidad he amenazado con hacerme daño, pero su puesto no lo digo en serio.",99]
["Creo que me conozco bien. Sé qué tipo de trabajo quiero hacer, con qué clase de amigos me gustaría alternar y en general que cosas son importantes para mí.",10,null,null,null,"No me agrada pasar el tiempo solo y en la medida de lo posible, trato de evitarlo.",40,null,null,null,"Algunos me han dicho que suelo desairarlos delante de otros. No tendrían que ser tan susceptibles, ya que las palabras no hacen daño a nadie. Y si honestamente piensan que soy muy duro con mis críticas, tendrían que reaccionar o defenderse.",70,null,null,null,"Me gusta hacer las cosas espontáneamente sin haberlas planeado con anticipación; por ejemplo, elegir un sitio y hacer un viaje allí por todo el tiempo que me apetezca. Sé que todo me va a salir bien.",100]
["No suelo sentirme aburrido ni vacío por dentro",11,null,null,null,"No soy demasiado susceptible frente al rechazo o la sensación de pérdida.",41,null,null,null,"Tal vez intimide demasiado en la gente. Algunos me han dicho que hacen lo que les digo porque me tienen miedo.",71,null,null,null,"No tengo paciencia para ocuparme de problemas económicos ni de pagar las cuentas, por eso algunos me consideran irresponsable.",101]
["Para mí es muy importante recibir elogios de los demás. Me agrada que me reconforten.  ",12,null,null,null,"Vivo afligido pensando que las personas más queridas pueden \nabandonarme, aunque por lo general no hay motivos.\n",42,null,null,null,"No soy tiránico en una relación. Muy rara vez me vuelvo malo o cruel aun cuando la otra persona lo merezca, y jamás me pongo violento.",72,null,null,null,"No soy una persona cauta. A veces corro riesgos; por ejemplo, supero el límite permitido de velocidad con mi coche o conduzco después de haber bebido, pero sé lo que  hago y llego a donde me propongo.",102]
["Me gusta soñar despierto y me imagino rico o famoso quizá también ganador de un premio nobel.",13,null,null,null,"A veces me preocupa tanto la posibilidad de que se abandonen, me vuelvo histérico y los llamo por teléfono para que me tranquilicen, lo cual puede resultarles muy fastidioso. ",43,null,null,null,"Creo que en ciertas ocasiones es preciso herir los sentimientos para lograr algún objetivo.",73,null,null,null,"Me intriga la posibilidad de llevar una vida secreta en la que pueda infligir las normas y no ser castigado.",103]
["Aunque no estoy seguro de que esté bien, me fascina la violencia de los videos juegos, las armas y las artes marciales. Me gustan las películas y los programas televisivos con mucha acción y violencia.",14,null,null,null,"Me encanta ser el centro de la atención. Me siento mucho más cómodo en el escenario que en el patio de butacas.",44,null,null,null,"Advierto que algunas personas hacen pequeñas cosas que me molesta o incluso me ofenden, solo para hacerme enojar.",74,null,null,null,"En el colegio donde estudié el bachillerato siempre armaba líos y me metía en problemas. Alguna de estas cosas pueden decirse de mí, que me eché la pera, que me escapé de casa, que participé en peleas, que tuve muchas experiencias sexuales, que mentí, que robé, que intimide a algunos compañeros, que estropee objetos ajenos.",104]
["La gente dice que me expreso de manera extraña, que digo cosas demasiado profundas para ellos o bien que no explico lo que quiero decir.",15,null,null,null,"Soy una persona muy sensual. Me gusta coquetear y vestirme de una manera sexualmente atractiva.",45,null,null,null,"Si alguien me trata bien no lo voy a olvidar nunca. ",75]
["Me agrada que reparen en mí, y tengo por costumbre salir a la caza de elogios cuando noto que no me prestan atención.",16,null,null,null,"La gente me considera una persona muy entretenida. Tengo la capacidad de relatar cosas de una manera amena, sin necesidad de dar siempre todos los detalles verdaderos.",46,null,null,null,"Como tengo una necesidad imperiosa de tener siempre nuevas \nexperiencias sexuales no duro mucho tiempo con la misma persona.\nComo tengo una necesidad imperiosa de tener siempre nuevas \nexperiencias sexuales no duro mucho tiempo con la misma persona.\nComo tengo una necesidad imperiosa de tener siempre nuevas \nexperiencias sexuales no duro mucho tiempo con la misma persona\nComo tengo una necesidad imperiosa de tener siempre nuevas \nexperiencias sexuales no duro mucho tiempo con la misma persona\nComo tengo una necesidad imperiosa de tener siempre nuevas \nexperiencias sexuales no duro mucho tiempo con la misma persona\n",76]
["Le asigno suma importancia a mi aspecto y dedico mucho tiempo a la tarea de mejorar mi apariencia. ",17,null,null,null," Tengo por costumbre entablar relaciones amorosas muy intensas y generalmente los sentimientos que me inspira la otra persona cambian de un extremo a otro. A veces adoro a mi pareja, pero en otras oportunidades no la soporto.",47,null,null,null,"No me aflijo demasiado pensando cómo les irá a mis hijos en la vida. Siempre va haber alguien que cuide de ellos. ",77]
["A veces me consideran excéntrico porque me visto a mi manera y porque tengo pinta de un (ido), es cierto que vivo en mi propio mundo. ",18,null,null,null,"Suelo envidiar a los demás.",48,null,null,null,"A veces invento historias o falseo la verdad solo para ver cómo \nreaccionan los demás. Tienen que tomármelo como broma y no enfadarse.\n",78]
["No me resulta fácil ponerme en el lugar de la otra persona. Me entiendo yo mejor de lo que entiendo a los demás. ",19,null,null,null,"No soy una persona muy confiada aunque me gustaría serlo. Lo que pasa es que no puedo dejar de pensar que, si no tengo cuidado, tal vez los demás se aprovechen de mi.",49,null,null,null,"No digo la verdad necesariamente.",79]
["Cuando me toca hacer cola o esperar a que me acomoden en un \nrestaurant lleno, suelo pasar adelante y consigo que me atiendan en el acto o al menos eso intento.\nCuando me toca hacer cola o esperar a que me acomoden en un \nrestaurant lleno, suelo pasar adelante y consigo que me atiendan en el acto o al menos eso intento.\nCuando me toca hacer cola o esperar a que me acomoden en un \nrestaurant lleno, suelo pasar adelante y consigo que me atiendan en el acto o al menos eso intento.\n",20,null,null,null,"A veces pienso que mis amigos o mis colegas no son tan leales como me gustaría que fuesen.",50,null,null,null,"La gente dice que siempre ando buscando pleito. Es cierto que discuto o me peleo con los que me llevan la contraria.",80]
["No tengo por costumbre arrepentirme de lo que he hecho puesto que no se gana con ello. Mi lema personal es no mirar nunca atrás.",21,null,null,null,"Siempre tengo muchos amigos íntimos fuera del marco de la familia. Si en un determinado momento tuviera uno solo no me resultaría suficiente.",51,null,null,null,"No tolero que me critiquen. Cuando alguien critica lo que digo o hago, le pago con la misma moneda.",81]
["Sé que soy una persona atípica y especial. Y para demostrarlo no me hace falta tener muchísimo.",22,null,null,null,"No me pongo celoso con facilidad, hasta tal punto que jamás me ha preocupado de que mi pareja me sea infiel.",52,null,null,null,"Tengo un temperamento muy equilibrado y casi nunca me cuesta dominar mi enojo.",82]
["Si es anticuado tener principios firmes y creer en una conducta ética y moral, soy anticuado.",23,null,null,null,"Soy una persona bastante reservada y no ando haciendo confidencias porque uno nunca sabe si una información privada, alguien la va a utilizar para su propio provecho.",53,null,null,null,"Soy de las personas que demuestran lo que sienten.",83]
["Medito mucho antes de tomar una decisión. Si bien los otros lo hacen rápidamente, yo soy muy cuidadoso. ",24,null,null,null,"Soy un ser solitario, lo cual no me molesta. No me gusta estar rodeado de gente, ni siquiera de mis familiares. ",54,null,null,null,"En ocasiones me porto como un tonto y hago pasar un mal rato a mis amigos. Ellos me dicen que no sé cómo comportarme, pero yo no estoy de acuerdo.",84]
["Rara vez pido consejo antes de tomar una decisión, especialmente en los asuntos de la vida diaria.",25,null,null,null,"Cuando tengo la posibilidad, me agrada hacer yo solo las cosas.",55,null,null,null,"Suelo reaccionar cambiando fácilmente de humor por pequeñas cosas. En el término de unas pocas horas soy capaz de experimentar una amplia gama de sentimientos, desde la alegría hasta la tristeza, al enojo o a la ansiedad. Pero el mal humor nunca me dura demasiado.",85]
["Nunca tiro nada. Mis cajones y armarios están llenos de cosas que no me atrevo o no quiero tirar. ",26,null,null,null,"No siento un impulso muy intenso de tener relaciones sexuales con nadie.",56,null,null,null,"Por lo general, no me afecta mucho que la gente me critique o piense mal de mi.",86]
["Cuando alguien me hace sugerencias de la forma de ser más productivo, me fastidia porque esa persona se está metiendo en lo que no le incumbe, y además no comprende completamente mi situación.",27,null,null,null,"Me siento cómodo entre extraños y me encanta ir a reuniones sociales donde puedo a conocer gente nueva.",57,null,null,null,"A veces me gustaría no demostrar tanto mis sentimientos. Tengo la impresión de que cada vez que estoy triste nervioso o avergonzado se me nota en la cara y todos se dan cuenta.",87]
["A veces me rio de las desgracias ajenas, reacción de la que no me enorgullezco. A lo mejor es mi manera de decir “podría yo estar pasando por esas circunstancias si no fuera por la gracia de Dios ”.",28,null,null,null," Soy muy tímido y muchas veces me da la sensación de que la gente me mira como juzgándome, no siempre halagadoramente. ",58,null,null,null,"Me cuesta aceptar las críticas aunque sean constructivas. Aunque no siempre lo demuestro. Interiormente me hacen sentir humillado, avergonzado o directamente furioso.",88]
["Aunque no tengo reparos de contar a otros mis problemas. Me pone muy incómodo que pretendan ayudarme a solucionarlos.",29,null,null,null,"Antes de entregarme a una relación afectiva espero hasta estar seguro de que le gusto a la otra persona.",59,null,null,null,"No soy de los que naturalmente expresan sus sentimientos, pero los llevo por dentro. Por eso casi siempre parezco serio y reservado",89]
["Creo que mis problemas son tan complejos y personales que la mayoría de la gente no los puede comprender.",30,null,null,null,"Me cae bien la gente, pero me siento mucho más cómodo si puedo eludir las reuniones sociales y las situaciones de trabajo en las que participan muchas personas.",60,null,null,null,"Prefiero  atenerme a una rutina diaria en vez de buscar situaciones y ambientes desconocidos.",90]

{"sheet":"RESPUESTAS","index":1,"n_rows":41,"n_cols":54,"rows_kept":41,"cut":false,"hidden":true,"merged":[[40,34,40,35],[40,38,40,39],[40,42,40,43],[40,46,40,47],[40,50,40,51],[40,14,40,15],[40,18,40,19],[40,22,40,23],[40,26,40,27],[40,30,40,31],[33,0,35,0],[37,0,38,0],[40,2,40,3],[40,6,40,7],[40,10,40,11],[22,42,22,44],[22,46,22,48],[22,50,22,52],[33,2,33,4],[33,6,33,8],[33,10,33,12],[33,14,33,16],[33,18,33,20],[33,22,33,24],[33,26,33,28],[33,30,33,32],[33,34,33,36],[33,38,33,40],[33,42,33,44],[33,46,33,48],[33,50,33,52],[22,22,22,24],[22,26,22,28],[22,30,22,32],[22,34,22,36],[22,38,22,40],[22,2,22,4],[22,6,22,8],[22,10,22,12],[22,14,22,16],[22,18,22,20],[1,42,1,44],[1,46,1,48],[1,50,1,52],[15,2,15,4],[15,6,15,8],[15,10,15,12],[15,14,15,16],[15,18,15,20],[15,22,15,24],[15,26,15,28],[15,30,15,32],[15,34,15,36],[15,38,15,40],[15,42,15,44],[15,46,15,48],[15,50,15,52],[1,22,1,24],[1,26,1,28],[1,30,1,32],[1,34,1,36],[1,38,1,40],[1,2,1,4],[1,6,1,8],[1,10,1,12],[1,14,1,16],[1,18,1,20],[28,50,28,52],[28,30,28,32],[28,34,28,36],[28,38,28,40],[28,42,28,44],[28,46,28,48],[28,22,28,24],[28,26,28,28],[28,10,28,12],[28,2,28,4],[28,6,28,8],[28,14,28,16],[28,18,28,20],[9,2,9,4],[9,6,9,8],[9,10,9,12],[9,14,9,16],[9,18,9,20],[9,42,9,44],[9,46,9,48],[9,50,9,52],[9,22,9,24],[9,26,9,28],[9,30,9,32],[9,34,9,36],[9,38,9,40]]}
[]
[null,null,"A",null,null,null,"B",null,null,null,"C",null,null,null,"D",null,null,null,"E",null,null,null,"F",null,null,null,"G",null,null,null,"H",null,null,null,"I",null,null,null,"J",null,null,null,"K",null,null,null,"L",null,null,null,"M",null,null,"PREGUNTAS 1-23"]
[null,null,"S","T","N",null,"S","T","N",null,"S","T","N",null,"S","T","N",null,"S","T","N",null,"S","T","N",null,"S","T","N",null,"S","T","N",null,"S","T","N",null,"S","T","N",null,"S","T","N",null,"S","T","N",null,"S","T","N"]
[null,null,null,null,null,null,null,null,null,null,{"$f":"COUNTIF(PREGUNTAS!C16,\"x\")","v":0},{"$f":"COUNTIF(PREGUNTAS!D16,\"x\")","v":0},{"$f":"COUNTIF(PREGUNTAS!E16,\"x\")","v":0},null,{"$f":"COUNTIF(PREGUNTAS!C22,\"x\")","v":0},{"$f":"COUNTIF(PREGUNTAS!D22,\"x\")","v":0},{"$f":"COUNTIF(PREGUNTAS!E22,\"x\")","v":0},null,{"$f":"COUNTIF(PREGUNTAS!C11:C12,\"x\")","v":0},{"$f":"COUNTIF(PREGUNTAS!D11:D12,\"x\")","v":0},{"$f":"COUNTIF(PREGUNTAS!E11:E12,\"x\")","v":0},null,{"$f":"COUNTIF(PREGUNTAS!C13,\"x\")","v":0},{"$f":"COUNTIF(PREGUNTAS!D13,\"x\")","v":0},{"$f":"COUNTIF(PREGUNTAS!E13,\"x\")","v":0},null,{"$f":"COUNTIF(PREGUNTAS!C14,\"x\")","v":0},{"$f":"COUNTIF(PREGUNTAS!D14,\"x\")","v":0},{"$f":"COUNTIF(PREGUNTAS!E14,\"x\")","v":0},null,null,null,null,null,null,null,null,null,{"$f":"COUNTIF(PREGUNTAS!C2:C4,\"x\")","v":0},{"$f":"COUNTIF(PREGUNTAS!D2:D4,\"x\")","v":0},{"$f":"COUNTIF(PREGUNTAS!E2:E4,\"x\")","v":0},null,{"$f":"COUNTIF(PREGUNTAS!C5:C7,\"x\")","v":0},{"$f":"COUNTIF(PREGUNTAS!D5:D7,\"x\")","v":0},{"$f":"COUNTIF(PREGUNTAS!E5:E7,\"x\")","v":0},null,{"$f":"COUNTIF(PREGUNTAS!C15,\"x\")","v":0},{"$f":"COUNTIF(PREGUNTAS!D15,\"x\")","v":0},{"$f":"COUNTIF(PREGUNTAS!E15,\"x\")","v":0},null,{"$f":"COUNTIF(PREGUNTAS!C9:C10,\"x\")","v":0},{"$f":"COUNTIF(PREGUNTAS!D9:D10,\"x\")","v":0},{"$f":"COUNTIF(PREGUNTAS!E9:E10,\"x\")","v":0}]
[null,null,null,null,null,null,null,null,null,null,{"$f":"COUNTIF(PREGUNTAS!C19,\"x\")","v":0},{"$f":"COUNTIF(PREGUNTAS!D19,\"x\")","v":0},{"$f":"COUNTIF(PREGUNTAS!E19,\"x\")","v":0},null,{"$f":"COUNTIF(PREGUNTAS!C8,\"x\")","v":0},{"$f":"COUNTIF(PREGUNTAS!D8,\"x\")","v":0},{"$f":"COUNTIF(PREGUNTAS!E8,\"x\")","v":0},null,null,null,null,null,{"$f":"COUNTIF(PREGUNTAS!C18,\"x\")","v":0},{"$f":"COUNTIF(PREGUNTAS!D18,\"x\")","v":0},{"$f":"COUNTIF(PREGUNTAS!E18,\"x\")","v":0},null,{"$f":"COUNTIF(PREGUNTAS!C17,\"x\")","v":0},{"$f":"COUNTIF(PREGUNTAS!D17,\"x\")","v":0},{"$f":"COUNTIF(PREGUNTAS!E17,\"x\")","v":0},null,null,null,null,null,null,null,null,null,{"$f":"COUNTIF(PREGUNTAS!C24,\"x\")","v":0},{"$f":"COUNTIF(PREGUNTAS!D24,\"x\")","v":0},{"$f":"COUNTIF(PREGUNTAS!E24,\"x\")","v":0}]
[null,null,null,null,null,null,null,null,null,null,{"$f":"SUM(K4:K5)","v":0},{"$f":"SUM(L4:L5)","v":0},{"$f":"SUM(M4:M5)","v":0},null,{"$f":"SUM(O4:O5)","v":0},{"$f":"SUM(P4:P5)","v":0},{"$f":"SUM(Q4:Q5)","v":0},null,null,null,null,null,{"$f":"SUM(W4:W5)","v":0},{"$f":"SUM(X4:X5)","v":0},{"$f":"SUM(Y4:Y5)","v":0},null,{"$f":"COUNTIF(PREGUNTAS!C20:C21,\"x\")","v":0},{"$f":"COUNTIF(PREGUNTAS!D20:D21,\"x\")","v":0},{"$f":"COUNTIF(PREGUNTAS!E20:E21,\"x\")","v":0},null,null,null,null,null,null,null,null,null,{"$f":"SUM(AM4:AM5)","v":0},{"$f":"SUM(AN4:AN5)","v":0},{"$f":"SUM(AO4:AO5)","v":0}]
[null,null,null,null,null,null,null,null,null,null,null,null,null,null,null,null,null,null,null,null,null,null,null,null,null,null,{"$f":"COUNTIF(PREGUNTAS!C23,\"x\")","v":0},{"$f":"COUNTIF(PREGUNTAS!D23,\"x\")","v":0},{"$f":"COUNTIF(PREGUNTAS!E23,\"x\")","v":0}]
[null,null,null,null,null,null,null,null,null,null,null,null,null,null,null,null,null,null,null,null,null,null,null,null,null,null,{"$f":"SUM(AA4:AA7)","v":0},{"$f":"SUM(AB4:AB7)","v":0},{"$f":"SUM(AC4:AC7)","v":0}]
[]
[null,null,"A",null,null,null,"B",null,null,null,"C",null,null,null,"D",null,null,null,"E",null,null,null,"F",null,null,null,"G",null,null,null,"H",null,null,null,"I",null,null,null,"J",null,null,null,"K",null,null,null,"L",null,null,null,"M",null,null,"PREGUNTAS 24-46"]
[null,null,"S","T","N",null,"S","T","N",null,"S","T","N",null,"S","T","N",null,"S","T","N",null,"S","T","N",null,"S","T","N",null,"S","T","N",null,"S","T","N",null,"S","T","N",null,"S","T","N",null,"S","T","N",null,"S","T","N"]
[null,null,null,null,null,null,null,null,null,null,null,null,null,null,null,null,null,null,{"$f":"COUNTIF(PREGUNTAS!H14,\"x\")","v":0},{"$f":"COUNTIF(PREGUNTAS!I14,\"x\")","v":0},{"$f":"COUNTIF(PREGUNTAS!J14,\"x\")","v":0},null,{"$f":"COUNTIF(PREGUNTAS!H15:H17,\"x\")","v":0},{"$f":"COUNTIF(PREGUNTAS!I15:I17,\"x\")","v":0},{"$f":"COUNTIF(PREGUNTAS!J15:J17,\"x\")","v":0},null,{"$f":"COUNTIF(PREGUNTAS!C31,\"x\")","v":0},{"$f":"COUNTIF(PREGUNTAS!D31,\"x\")","v":0},{"$f":"COUNTIF(PREGUNTAS!E31,\"x\")","v":0},null,null,null,null,null,{"$f":"COUNTIF(PREGUNTAS!H7:H13,\"x\")","v":0},{"$f":"COUNTIF(PREGUNTAS!I7:I13,\"x\")","v":0},{"$f":"COUNTIF(PREGUNTAS!J7:J13,\"x\")","v":0},null,{"$f":"COUNTIF(PREGUNTAS!C25,\"x\")","v":0},{"$f":"COUNTIF(PREGUNTAS!D25,\"x\")","v":0},{"$f":"COUNTIF(PREGUNTAS!E25,\"x\")","v":0},null,{"$f":"COUNTIF(PREGUNTAS!C28,\"X\")","v":0},{"$f":"COUNTIF(PREGUNTAS!D28,\"X\")","v":0},{"$f":"COUNTIF(PREGUNTAS!E28,\"X\")","v":0},null,{"$f":"COUNTIF(PREGUNTAS!C29,\"X\")","v":0},{"$f":"COUNTIF(PREGUNTAS!D29,\"X\")","v":0},{"$f":"COUNTIF(PREGUNTAS!E29,\"X\")","v":0},null,{"$f":"COUNTIF(PREGUNTAS!C30,\"X\")","v":0},{"$f":"COUNTIF(PREGUNTAS!D30,\"X\")","v":0},{"$f":"COUNTIF(PREGUNTAS!E30,\"X\")","v":0}]
[null,null,null,null,null,null,null,null,null,null,null,null,null,null,null,null,null,null,null,null,null,null,null,null,null,null,null,null,null,null,null,null,null,null,{"$f":"COUNTIF(PREGUNTAS!C26,\"x\")","v":0},{"$f":"COUNTIF(PREGUNTAS!D26,\"x\")","v":0},{"$f":"COUNTIF(PREGUNTAS!E26,\"x\")","v":0},null,{"$f":"COUNTIF(PREGUNTAS!C27,\"x\")","v":0},{"$f":"COUNTIF(PREGUNTAS!D27,\"x\")","v":0},{"$f":"COUNTIF(PREGUNTAS!E27,\"x\")","v":0},null,null,null,null,null,null,null,null,null,{"$f":"COUNTIF(PREGUNTAS!H2:H6,\"X\")","v":0},{"$f":"COUNTIF(PREGUNTAS!I2:I6,\"X\")","v":0},{"$f":"COUNTIF(PREGUNTAS!J2:J6,\"X\")","v":0}]
[null,null,null,null,null,null,null,null,null,null,null,null,null,null,null,null,null,null,null,null,null,null,null,null,null,null,null,null,null,null,null,null,null,null,{"$f":"SUM(AI12:AI13)","v":0},{"$f":"SUM(AJ12:AJ13)","v":0},{"$f":"SUM(AK12:AK13)","v":0},null,{"$f":"SUM(AM12:AM13)","v":0},{"$f":"SUM(AN12:AN13)","v":0},{"$f":"SUM(AO12:AO13)","v":0},null,null,null,null,null,null,null,null,null,{"$f":"SUM(AY12:AY13)","v":0},{"$f":"SUM(AZ12:AZ13)","v":0},{"$f":"SUM(BA12:BA13)","v":0}]
[]
[null,null,"A",null,null,null,"B",null,null,null,"C",null,null,null,"D",null,null,null,"E",null,null,null,"F",null,null,null,"G",null,null,null,"H",null,null,null,"I",null,null,null,"J",null,null,null,"K",null,null,null,"L",null,null,null,"M",null,null,"PREGUNTAS 47-69"]
[null,null,"S","T","N",null,"S","T","N",null,"S","T","N",null,"S","T","N",null,"S","T","N",null,"S","T","N",null,"S","T","N",null,"S","T","N",null,"S","T","N",null,"S","T","N",null,"S","T","N",null,"S","T","N",null,"S","T","N"]
[null,null,{"$f":"COUNTIF(PREGUNTAS!H20:H21,\"x\")","v":0},{"$f":"COUNTIF(PREGUNTAS!I20:I21,\"x\")","v":0},{"$f":"COUNTIF(PREGUNTAS!J20:J21,\"x\")","v":0},null,{"$f":"COUNTIF(PREGUNTAS!H22,\"x\")","v":0},{"$f":"COUNTIF(PREGUNTAS!I22,\"x\")","v":0},{"$f":"COUNTIF(PREGUNTAS!J22,\"x\")","v":0},null,{"$f":"COUNTIF(PREGUNTAS!H22,\"x\")","v":0},{"$f":"COUNTIF(PREGUNTAS!I22,\"x\")","v":0},{"$f":"COUNTIF(PREGUNTAS!J22,\"x\")","v":0},null,null,null,null,null,{"$f":"COUNTIF(PREGUNTAS!H18,\"x\")","v":0},{"$f":"COUNTIF(PREGUNTAS!I18,\"x\")","v":0},{"$f":"COUNTIF(PREGUNTAS!J18,\"x\")","v":0},null,null,null,null,null,{"$f":"COUNTIF(PREGUNTAS!H19,\"x\")","v":0},{"$f":"COUNTIF(PREGUNTAS!I19,\"x\")","v":0},{"$f":"COUNTIF(PREGUNTAS!J19,\"x\")","v":0},null,{"$f":"COUNTIF(PREGUNTAS!H22,\"x\")","v":0},{"$f":"COUNTIF(PREGUNTAS!I22,\"x\")","v":0},{"$f":"COUNTIF(PREGUNTAS!J22,\"x\")","v":0},null,null,null,null,null,{"$f":"COUNTIF(PREGUNTAS!M8,\"x\")","v":0},{"$f":"COUNTIF(PREGUNTAS!N8,\"x\")","v":0},{"$f":"COUNTIF(PREGUNTAS!O8,\"x\")","v":0},null,{"$f":"COUNTIF(PREGUNTAS!M3:M7,\"x\")","v":0},{"$f":"COUNTIF(PREGUNTAS!N3:N7,\"x\")","v":0},{"$f":"COUNTIF(PREGUNTAS!O3:O7,\"x\")","v":0},null,{"$f":"COUNTIF(PREGUNTAS!M9:M10,\"x\")","v":0},{"$f":"COUNTIF(PREGUNTAS!N9:N10,\"x\")","v":0},{"$f":"COUNTIF(PREGUNTAS!O9:O10,\"x\")","v":0}]
[null,null,{"$f":"COUNTIF(PREGUNTAS!H23:H24,\"x\")","v":0},{"$f":"COUNTIF(PREGUNTAS!I23:I24,\"x\")","v":0},{"$f":"COUNTIF(PREGUNTAS!J23:J24,\"x\")","v":0},null,{"$f":"COUNTIF(PREGUNTAS!H25:H27,\"x\")","v":0},{"$f":"COUNTIF(PREGUNTAS!I25:I27,\"x\")","v":0},{"$f":"COUNTIF(PREGUNTAS!J25:J27,\"x\")","v":0},null,{"$f":"COUNTIF(PREGUNTAS!H24,\"x\")","v":0},{"$f":"COUNTIF(PREGUNTAS!I24,\"x\")","v":0},{"$f":"COUNTIF(PREGUNTAS!J24,\"x\")","v":0},null,null,null,null,null,null,null,null,null,null,null,null,null,null,null,null,null,{"$f":"COUNTIF(PREGUNTAS!H30:H31,\"x\")","v":0},{"$f":"COUNTIF(PREGUNTAS!I30:I31,\"x\")","v":0},{"$f":"COUNTIF(PREGUNTAS!J30:J31,\"x\")","v":0}]
[null,null,{"$f":"SUM(C18:C19)","v":0},{"$f":"SUM(D18:D19)","v":0},{"$f":"SUM(E18:E19)","v":0},null,{"$f":"SUM(G18:G19)","v":0},{"$f":"SUM(H18:H19)","v":0},{"$f":"SUM(I18:I19)","v":0},null,{"$f":"COUNTIF(PREGUNTAS!H28:H29,\"x\")","v":0},{"$f":"COUNTIF(PREGUNTAS!I28:I29,\"x\")","v":0},{"$f":"COUNTIF(PREGUNTAS!J28:J29,\"x\")","v":0},null,null,null,null,null,null,null,null,null,null,null,null,null,null,null,null,null,{"$f":"COUNTIF(PREGUNTAS!M2,\"x\")","v":0},{"$f":"COUNTIF(PREGUNTAS!N2,\"x\")","v":0},{"$f":"COUNTIF(PREGUNTAS!O2,\"x\")","v":0}]
[null,null,null,null,null,null,null,null,null,null,{"$f":"SUM(K18:K20)","v":0},{"$f":"SUM(L18:L20)","v":0},{"$f":"SUM(M18:M20)","v":0},null,null,null,null,null,null,null,null,null,null,null,null,null,null,null,null,null,{"$f":"SUM(AE18:AE20)","v":0},{"$f":"SUM(AF18:AF20)","v":0},{"$f":"SUM(AG18:AG20)","v":0}]
[]
[null,null,"A",null,null,null,"B",null,null,null,"C",null,null,null,"D",null,null,null,"E",null,null,null,"F",null,null,null,"G",null,null,null,"H",null,null,null,"I",null,null,null,"J",null,null,null,"K",null,null,null,"L",null,null,null,"M",null,null,"PREGUNTAS 70-92"]
[null,null,"S","T","N",null,"S","T","N",null,"S","T","N",null,"S","T","N",null,"S","T","N",null,"S","T","N",null,"S","T","N",null,"S","T","N",null,"S","T","N",null,"S","T","N",null,"S","T","N",null,"S","T","N",null,"S","T","N"]
[null,null,{"$f":"COUNTIF(PREGUNTAS!M15:M16,\"x\")","v":0},{"$f":"COUNTIF(PREGUNTAS!N15:N16,\"x\")","v":0},{"$f":"COUNTIF(PREGUNTAS!O15:O16,\"x\")","v":0},null,{"$f":"COUNTIF(PREGUNTAS!R2:R3,\"x\")","v":0},{"$f":"COUNTIF(PREGUNTAS!S2:S3,\"x\")","v":0},{"$f":"COUNTIF(PREGUNTAS!T2:T3,\"x\")","v":0},null,{"$f":"COUNTIF(PREGUNTAS!M25,\"x\")","v":0},{"$f":"COUNTIF(PREGUNTAS!N25,\"x\")","v":0},{"$f":"COUNTIF(PREGUNTAS!O25,\"x\")","v":0},null,{"$f":"COUNTIF(PREGUNTAS!M17:M18,\"x\")","v":0},{"$f":"COUNTIF(PREGUNTAS!N17:N18,\"x\")","v":0},{"$f":"COUNTIF(PREGUNTAS!O17:O18,\"x\")","v":0},null,{"$f":"COUNTIF(PREGUNTAS!M23,\"x\")","v":0},{"$f":"COUNTIF(PREGUNTAS!N23,\"x\")","v":0},{"$f":"COUNTIF(PREGUNTAS!O23,\"x\")","v":0},null,{"$f":"COUNTIF(PREGUNTAS!M24,\"X\")","v":0},{"$f":"COUNTIF(PREGUNTAS!N24,\"X\")","v":0},{"$f":"COUNTIF(PREGUNTAS!O24,\"X\")","v":0},null,{"$f":"COUNTIF(PREGUNTAS!M14,\"X\")","v":0},{"$f":"COUNTIF(PREGUNTAS!N14,\"X\")","v":0},{"$f":"COUNTIF(PREGUNTAS!O14,\"X\")","v":0},null,{"$f":"COUNTIF(PREGUNTAS!M27:M28,\"X\")","v":0},{"$f":"COUNTIF(PREGUNTAS!N27:N28,\"X\")","v":0},{"$f":"COUNTIF(PREGUNTAS!O27:O28,\"X\")","v":0},null,{"$f":"COUNTIF(PREGUNTAS!M27,\"X\")","v":0},{"$f":"COUNTIF(PREGUNTAS!N27,\"X\")","v":0},{"$f":"COUNTIF(PREGUNTAS!O27,\"X\")","v":0},null,{"$f":"COUNTIF(PREGUNTAS!M30,\"X\")","v":0},{"$f":"COUNTIF(PREGUNTAS!N30,\"X\")","v":0},{"$f":"COUNTIF(PREGUNTAS!O30,\"X\")","v":0},null,null,null,null,null,{"$f":"COUNTIF(PREGUNTAS!M11:M13,\"X\")","v":0},{"$f":"COUNTIF(PREGUNTAS!N11:N13,\"X\")","v":0},{"$f":"COUNTIF(PREGUNTAS!O11:O13,\"X\")","v":0}]
[null,null,{"$f":"COUNTIF(PREGUNTAS!M22,\"x\")","v":0},{"$f":"COUNTIF(PREGUNTAS!N22,\"x\")","v":0},{"$f":"COUNTIF(PREGUNTAS!O22,\"x\")","v":0},null,null,null,null,null,null,null,null,null,{"$f":"COUNTIF(PREGUNTAS!M20:M21,\"x\")","v":0},{"$f":"COUNTIF(PREGUNTAS!N20:N21,\"x\")","v":0},{"$f":"COUNTIF(PREGUNTAS!O20:O21,\"x\")","v":0},null,{"$f":"COUNTIF(PREGUNTAS!M26,\"X\")","v":0},{"$f":"COUNTIF(PREGUNTAS!N26,\"X\")","v":0},{"$f":"COUNTIF(PREGUNTAS!O26,\"X\")","v":0},null,{"$f":"COUNTIF(PREGUNTAS!M26,\"x\")","v":0},{"$f":"COUNTIF(PREGUNTAS!N26,\"x\")","v":0},{"$f":"COUNTIF(PREGUNTAS!O26,\"x\")","v":0},null,{"$f":"COUNTIF(PREGUNTAS!M29,\"X\")","v":0},{"$f":"COUNTIF(PREGUNTAS!N29,\"X\")","v":0},{"$f":"COUNTIF(PREGUNTAS!O29,\"X\")","v":0},null,{"$f":"COUNTIF(PREGUNTAS!M31,\"X\")","v":0},{"$f":"COUNTIF(PREGUNTAS!N31,\"X\")","v":0},{"$f":"COUNTIF(PREGUNTAS!O31,\"X\")","v":0},null,null,null,null,null,null,null,null,null,null,null,null,null,{"$f":"COUNTIF(PREGUNTAS!M19,\"X\")","v":0},{"$f":"COUNTIF(PREGUNTAS!N19,\"X\")","v":0},{"$f":"COUNTIF(PREGUNTAS!O19,\"X\")","v":0}]
[null,null,{"$f":"SUM(C25:C26)","v":0},{"$f":"SUM(D25:D26)","v":0},{"$f":"SUM(E25:E26)","v":0},null,null,null,null,null,null,null,null,null,{"$f":"SUM(O25:O26)","v":0},{"$f":"SUM(P25:P26)","v":0},{"$f":"SUM(Q25:Q26)","v":0},null,{"$f":"SUM(S25:S26)","v":0},{"$f":"SUM(T25:T26)","v":0},{"$f":"SUM(U25:U26)","v":0},null,{"$f":"SUM(W25:W26)","v":0},{"$f":"SUM(X25:X26)","v":0},{"$f":"SUM(Y25:Y26)","v":0},null,{"$f":"SUM(AA25:AA26)","v":0},{"$f":"SUM(AB25:AB26)","v":0},{"$f":"SUM(AC25:AC26)","v":0},null,{"$f":"SUM(AE25:AE26)","v":0},{"$f":"SUM(AF25:AF26)","v":0},{"$f":"SUM(AG25:AG26)","v":0},null,null,null,null,null,null,null,null,null,null,null,null,null,{"$f":"SUM(AU25:AU26)","v":0},{"$f":"SUM(AV25:AV26)","v":0},{"$f":"SUM(AW25:AW26)","v":0}]
[]
[null,null,"A",null,null,null,"B",null,null,null,"C",null,null,null,"D",null,null,null,"E",null,null,null,"F",null,null,null,"G",null,null,null,"H",null,null,null,"I",null,null,null,"J",null,null,null,"K",null,null,null,"L",null,null,null,"M",null,null,"PREGUNTAS 93-104"]
[null,null,"S","T","N",null,"S","T","N",null,"S","T","N",null,"S","T","N",null,"S","T","N",null,"S","T","N",null,"S","T","N",null,"S","T","N",null,"S","T","N",null,"S","T","N",null,"S","T","N",null,"S","T","N",null,"S","T","N"]
[null,null,null,null,null,null,{"$f":"COUNTIF(PREGUNTAS!R4,\"X\")","v":0},{"$f":"COUNTIF(PREGUNTAS!S4,\"X\")","v":0},{"$f":"COUNTIF(PREGUNTAS!T4,\"X\")","v":0},null,{"$f":"COUNTIF(PREGUNTAS!R5:R6,\"X\")","v":0},{"$f":"COUNTIF(PREGUNTAS!S5:S6,\"X\")","v":0},{"$f":"COUNTIF(PREGUNTAS!T5:T6,\"X\")","v":0},null,{"$f":"COUNTIF(PREGUNTAS!R11:R15,\"X\")","v":0},{"$f":"COUNTIF(PREGUNTAS!S11:S15,\"X\")","v":0},{"$f":"COUNTIF(PREGUNTAS!T11:T15,\"X\")","v":0},null,{"$f":"COUNTIF(PREGUNTAS!R9:R10,\"X\")","v":0},{"$f":"COUNTIF(PREGUNTAS!S9:S10,\"X\")","v":0},{"$f":"COUNTIF(PREGUNTAS!T9:T10,\"X\")","v":0},null,{"$f":"COUNTIF(PREGUNTAS!R8,\"X\")","v":0},{"$f":"COUNTIF(PREGUNTAS!S8,\"X\")","v":0},{"$f":"COUNTIF(PREGUNTAS!T8,\"X\")","v":0},null,null,null,null,null,null,null,null,null,null,null,null,null,{"$f":"COUNTIF(PREGUNTAS!R7,\"X\")","v":0},{"$f":"COUNTIF(PREGUNTAS!S7,\"X\")","v":0},{"$f":"COUNTIF(PREGUNTAS!T7,\"X\")","v":0}]
[]
[]
["SUBTOTAL",null,"A",null,null,null,"B",null,null,null,"C",null,null,null,"D",null,null,null,"E",null,null,null,"F",null,null,null,"G",null,null,null,"H",null,null,null,"I",null,null,null,"J",null,null,null,"K",null,null,null,"L",null,null,null,"M"]
[null,null,"S","T","N",null,"S","T","N",null,"S","T","N",null,"S","T","N",null,"S","T","N",null,"S","T","N",null,"S","T","N",null,"S","T","N",null,"S","T","N",null,"S","T","N",null,"S","T","N",null,"S","T","N",null,"S","T","N"]
[null,null,{"$f":"SUM(C27,C31,C20,C12,C4)","v":0},{"$f":"SUM(D27,D31,D20,D12,D4)","v":0},{"$f":"SUM(E27,E31,E20,E12,E4)","v":0},null,{"$f":"SUM(G31:G35,G25,G31,G20)","v":0},{"$f":"SUM(H31:H35,H25,H31,H20)","v":0},{"$f":"SUM(I31:I35,I25,I31,I20)","v":0},null,{"$f":"SUM(K31:K35,K25,K21,K6)","v":0},{"$f":"SUM(L31:L35,L25,L21,L6)","v":0},{"$f":"SUM(M31:M35,M25,M21,M6)","v":0},null,{"$f":"SUM(O31:O35,O27,O6)","v":0},{"$f":"SUM(P31:P35,P27,P6)","v":0},{"$f":"SUM(Q31:Q35,Q27,Q6)","v":0},null,{"$f":"SUM(S31:S35,S27,S18,S12,S4)","v":0},{"$f":"SUM(T31:T35,T27,T18,T12,T4)","v":0},{"$f":"SUM(U31:U35,U27,U18,U12,U4)","v":0},null,{"$f":"SUM(W31:W35,W27,W12,W6)","v":0},{"$f":"SUM(X31:X35,X27,X12,X6)","v":0},{"$f":"SUM(Y31:Y35,Y27,Y12,Y6)","v":0},null,{"$f":"SUM(AA27,AA18,AA12,AA8)","v":0},{"$f":"SUM(AB27,AB18,AB12,AB8)","v":0},{"$f":"SUM(AC27,AC18,AC12,AC8)","v":0},null,{"$f":"SUM(AE27,AE21)","v":0},{"$f":"SUM(AF27,AF21)","v":0},{"$f":"SUM(AG27,AG21)","v":0},null,{"$f":"SUM(AI25,AI14)","v":0},{"$f":"SUM(AJ25,AJ14)","v":0},{"$f":"SUM(AK25,AK14)","v":0},null,{"$f":"SUM(AM31,AM25,AM18,AM14,AM6)","v":0},{"$f":"SUM(AN31,AN25,AN18,AN14,AN6)","v":0},{"$f":"SUM(AO31,AO25,AO18,AO14,AO6)","v":0},null,{"$f":"SUM(AQ18,AQ12,AQ4)","v":0},{"$f":"SUM(AR18,AR12,AR4)","v":0},{"$f":"SUM(AS18,AS12,AS4)","v":0},null,{"$f":"SUM(AU27,AU18,AU12,AU4)","v":0},{"$f":"SUM(AV27,AV18,AV12,AV4)","v":0},{"$f":"SUM(AW27,AW18,AW12,AW4)","v":0},null,{"$f":"SUM(AY14,AY4)","v":0},{"$f":"SUM(AZ14,AZ4)","v":0},{"$f":"SUM(BA14,BA4)","v":0}]
[]
["TOTAL","S*2",{"$f":"C36*2","v":0},null,null,null,{"$f":"G36*2","v":0},null,null,null,{"$f":"K36*2","v":0},null,null,null,{"$f":"O36*2","v":0},null,null,null,{"$f":"S36*2","v":0},null,null,null,{"$f":"W36*2","v":0},null,null,null,{"$f":"AA36*2","v":0},null,null,null,{"$f":"AE36*2","v":0},null,null,null,{"$f":"AI36*2","v":0},null,null,null,{"$f":"AM36*2","v":0},null,null,null,{"$f":"AQ36*2","v":0},null,null,null,{"$f":"AU36*2","v":0},null,null,null,{"$f":"AY36*2","v":0}]
[null,"T*1",null,{"$f":"D36","v":0},null,null,null,{"$f":"H36","v":0},null,null,null,{"$f":"L36","v":0},null,null,null,{"$f":"P36","v":0},null,null,null,{"$f":"T36","v":0},null,null,null,{"$f":"X36","v":0},null,null,null,{"$f":"AB36","v":0},null,null,null,{"$f":"AF36","v":0},null,null,null,{"$f":"AJ36","v":0},null,null,null,{"$f":"AN36","v":0},null,null,null,{"$f":"AR36","v":0},null,null,null,{"$f":"AV36","v":0},null,null,null,{"$f":"AZ36","v":0}]
[]
["RESULTADO",null,{"$f":"SUM(C38:D39)","v":0},null,null,null,{"$f":"SUM(G38:H39)","v":0},null,null,null,{"$f":"SUM(K38:L39)","v":0},null,null,null,{"$f":"SUM(O38:P39)","v":0},null,null,null,{"$f":"SUM(S38:T39)","v":0},null,null,null,{"$f":"SUM(W38:X39)","v":0},null,null,null,{"$f":"SUM(AA38:AB39)","v":0},null,null,null,{"$f":"SUM(AE38:AF39)","v":0},null,null,null,{"$f":"SUM(AI38:AJ39)","v":0},null,null,null,{"$f":"SUM(AM38:AN39)","v":0},null,null,null,{"$f":"SUM(AQ38:AR39)","v":0},null,null,null,{"$f":"SUM(AU38:AV39)","v":0},null,null,null,{"$f":"SUM(AY38:AZ39)","v":0}]

{"sheet":"Hoja2","index":2,"n_rows":0,"n_cols":0,"rows_kept":0,"cut":false,"hidden":false,"merged":[]}

{"sheet":"Hoja1","index":3,"n_rows":0,"n_cols":0,"rows_kept":0,"cut":false,"hidden":false,"merged":[]}